fUSD/lending_fUSD_20241219
["ID","MTS","AMOUNT","RATE_DAILY","PERIOD"]
[346011176,1734623439896,-500.0,0.00023561,4]
[346011177,1734623439906,-500.0,0.00023561,4]
[346011178,1734623439915,-500.0,0.00023561,4]
[346011179,1734623439924,-500.0,0.00023561,4]
[346011180,1734623439934,-391.27731319,0.00023623,2]
[346011181,1734623439943,-451.916,0.0002375,2]
[346011182,1734623439953,-500.0,0.00023772,4]
[346011183,1734623439963,-500.0,0.00023772,4]
[346011184,1734623439972,-500.0,0.00023772,4]
[346011185,1734623439982,-500.0,0.00023772,4]
[346011186,1734623439991,-500.0,0.00023772,4]
[346011187,1734623440000,-500.0,0.00023772,4]
[346011188,1734623440009,-500.0,0.00023772,4]
[346011189,1734623440019,-500.0,0.00023772,4]
[346011190,1734623440028,-500.0,0.00023772,4]
[346011191,1734623440038,-391.27731319,0.00023805,2]
[346011192,1734623440047,-500.0,0.00023832,4]
[346011193,1734623440056,-500.0,0.00023832,4]
[346011194,1734623440066,-500.0,0.00023832,4]
[346011195,1734623440076,-895.5,0.00023832,4]
[346011196,1734623440085,-500.0,0.00023832,4]
[346011197,1734623440094,-500.0,0.00023833,4]
[346011198,1734623440104,-500.0,0.00023833,4]
[346011199,1734623440114,-500.0,0.00023833,4]
[346011200,1734623440123,-500.0,0.00023833,4]
[346011201,1734623440132,-500.0,0.00023833,4]
[346011202,1734623440144,-500.0,0.00023833,4]
[346011203,1734623440153,-500.0,0.00023833,4]
[346011204,1734623440163,-500.0,0.00023833,4]
[346011205,1734623440172,-500.0,0.00023833,4]
[346011206,1734623440182,-500.0,0.00023833,4]
[346011207,1734623440191,-500.0,0.00023833,4]
[346011208,1734623440200,-824.3,0.00023833,4]
[346011209,1734623440210,-500.0,0.00023833,4]
[346011211,1734623440219,-500.0,0.00023833,4]
[346011213,1734623440228,-500.0,0.00023833,4]
[346011214,1734623440237,-500.0,0.00023833,4]
[346011215,1734623440247,-500.0,0.00023833,4]
[346011216,1734623440256,-500.0,0.00023833,4]
[346011217,1734623440265,-618.46,0.00023833,4]
[346011218,1734623440275,-521.38,0.00023833,4]
[346011219,1734623440284,-1093.24,0.00023833,4]
[346011220,1734623440294,-500.0,0.00023833,4]
[346011221,1734623440303,-500.0,0.00023833,4]
[346011222,1734623440312,-500.0,0.00023833,4]
[346011223,1734623440322,-500.0,0.00023833,4]
[346011224,1734623440331,-500.0,0.00023833,4]
[346011225,1734623440341,-500.0,0.00023833,4]
[346011226,1734623440352,-500.0,0.00023833,4]
[346011227,1734623440361,-717.63,0.00023833,4]
[346011228,1734623440370,-500.0,0.00023833,4]
[346011229,1734623440380,-1811.14,0.00023833,4]
[346011230,1734623440389,-2017.18,0.00023833,4]
[346011231,1734623440401,-500.0,0.00023833,4]
[346011232,1734623440411,-17714.08457685,0.00023833,5]
[346011233,1734623440423,-500.0,0.00023834,4]
[346011234,1734623440432,-17714.08457685,0.00023834,5]
[346011235,1734623440442,-500.0,0.00023835,4]
[346011236,1734623440451,-500.0,0.00023835,4]
[346011237,1734623440460,-500.0,0.00023835,4]
[346011238,1734623440469,-500.0,0.00023835,4]
[346011239,1734623440479,-500.0,0.00023835,4]
[346011240,1734623440488,-635.96,0.00023835,4]
[346011241,1734623440498,-500.0,0.00023835,4]
[346011242,1734623440507,-500.0,0.00023835,4]
[346011243,1734623440517,-500.0,0.00023835,4]
[346011244,1734623440526,-522.98,0.00023835,4]
[346011245,1734623440535,-348.70394694,0.00023835,4]
[346011246,1734623440545,-593.22,0.00023835,4]
[346011247,1734623440556,-754.73,0.00023835,4]
[346011248,1734623440567,-500.0,0.00023835,4]
[346011249,1734623440576,-500.0,0.00023835,4]
[346011250,1734623440586,-783.85,0.00023835,4]
[346011251,1734623440596,-843.2,0.00023835,4]
[346011252,1734623440606,-998.34,0.00023835,4]
[346011253,1734623440615,-500.0,0.00023835,4]
[346011254,1734623440625,-1465.39,0.00023835,4]
[346011255,1734623440635,-676.41,0.00023835,4]
[346011256,1734623440650,-500.0,0.00023835,4]
[346011257,1734623440661,-500.0,0.00023835,4]
[346011258,1734623440671,-506.74,0.00023835,4]
[346011259,1734623440681,-1117.63,0.00023835,4]
[346011260,1734623440690,-1309.44,0.00023835,4]
[346011261,1734623440700,-1745.38,0.00023835,4]
[346011262,1734623440709,-500.0,0.00023835,4]
[346011263,1734623440719,-500.0,0.00023835,4]
[346011264,1734623440729,-500.0,0.00023835,4]
[346011265,1734623440738,-500.0,0.00023835,4]
[346011266,1734623440748,-500.0,0.00023835,4]
[346011267,1734623440757,-526.42423896,0.00023835,4]
[346011268,1734623440767,-17714.08457685,0.00023849,5]
[346011269,1734623440776,-164.83,0.00023856,2]
[346011270,1734623440786,-17714.08457685,0.00023857,5]
[346011271,1734623440796,-14018.8956555,0.00023858,5]
[346011272,1734623440805,-14018.8956555,0.00023867,5]
[346011273,1734623440815,-14018.8956555,0.00023879,5]
[346011274,1734623440825,-17714.08457685,0.00023887,5]
[346011275,1734623440834,-17714.08457685,0.00023888,5]
[346011276,1734623440844,-14018.8956555,0.0002389,5]
[346011277,1734623440853,-14018.8956555,0.00023893,5]
[346011278,1734623440862,-14018.8956555,0.00023897,5]
[346011279,1734623440872,-192.75,0.000239,2]
[346011281,1734623440881,-200.0,0.000239,8]
[346011282,1734623440891,-391.27731319,0.00023988,2]
[346011284,1734623440903,-746.95,0.00023999,4]
[346011286,1734623440912,-500.0,0.00024,8]
[346011287,1734623440922,-500.0,0.00024046,4]
[346011289,1734623440931,-500.0,0.00024046,4]
[346011290,1734623440940,-500.0,0.00024046,4]
[346011292,1734623440950,-500.0,0.00024046,4]
[346011294,1734623440959,-500.0,0.00024046,4]
[346011295,1734623440968,-500.0,0.00024046,4]
[346011297,1734623440978,-700.0,0.000241,8]
[346011299,1734623440987,-500.0,0.00024106,4]
[346011300,1734623440997,-500.0,0.00024106,4]
[346011302,1734623441006,-500.0,0.00024106,4]
[346011304,1734623441016,-895.5,0.00024106,4]
[346011305,1734623441024,-500.0,0.00024106,4]
[346011307,1734623441034,-500.0,0.00024107,4]
[346011308,1734623441043,-500.0,0.00024107,4]
[346011310,1734623441053,-500.0,0.00024107,4]
[346011312,1734623441062,-500.0,0.00024107,4]
[346011313,1734623441071,-500.0,0.00024107,4]
[346011315,1734623441081,-500.0,0.00024107,4]
[346011317,1734623441090,-500.0,0.00024107,4]
[346011318,1734623441100,-500.0,0.00024107,4]
[346011320,1734623441111,-500.0,0.00024107,4]
[346011322,1734623441120,-500.0,0.00024107,4]
[346011323,1734623441129,-500.0,0.00024107,4]
[346011325,1734623441140,-824.3,0.00024107,4]
[346011327,1734623441153,-500.0,0.00024107,4]
[346011329,1734623441162,-500.0,0.00024107,4]
[346011330,1734623441171,-500.0,0.00024107,4]
[346011332,1734623441181,-500.0,0.00024107,4]
[346011333,1734623441190,-500.0,0.00024107,4]
[346011335,1734623441200,-500.0,0.00024107,4]
[346011337,1734623441209,-618.46,0.00024107,4]
[346011338,1734623441219,-521.38,0.00024107,4]
[346011340,1734623441228,-1093.24,0.00024107,4]
[346011342,1734623441237,-500.0,0.00024107,4]
[346011343,1734623441246,-500.0,0.00024107,4]
[346011345,1734623441255,-500.0,0.00024107,4]
[346011346,1734623441265,-500.0,0.00024107,4]
[346011348,1734623441274,-500.0,0.00024107,4]
[346011350,1734623441282,-500.0,0.00024107,4]
[346011351,1734623441292,-248.21755628,0.00024107,4]
[346011353,1734623441301,-717.63,0.00024107,4]
[346011355,1734623441311,-500.0,0.00024107,4]
[346011356,1734623441320,-1811.14,0.00024107,4]
[346011358,1734623441330,-2017.18,0.00024107,4]
[346011360,1734623441339,-500.0,0.00024107,4]
[346011361,1734623441348,-500.0,0.00024108,4]
[346011363,1734623441358,-500.0,0.00024109,4]
[346011365,1734623441367,-500.0,0.00024109,4]
[346011366,1734623441376,-500.0,0.00024109,4]
[346011368,1734623441385,-500.0,0.00024109,4]
[346011370,1734623441394,-500.0,0.00024109,4]
[346011371,1734623441403,-635.96,0.00024109,4]
[346011373,1734623441413,-500.0,0.00024109,4]
[346011375,1734623441423,-500.0,0.00024109,4]
[346011377,1734623441432,-522.98,0.00024109,4]
[346011379,1734623441441,-593.22,0.00024109,4]
[346011381,1734623441451,-754.73,0.00024109,4]
[346011383,1734623441461,-500.0,0.00024109,4]
[346011385,1734623441470,-500.0,0.00024109,4]
[346011386,1734623441479,-783.85,0.00024109,4]
[346011387,1734623441488,-843.2,0.00024109,4]
[346011388,1734623441497,-998.34,0.00024109,4]
[346011389,1734623441506,-500.0,0.00024109,4]
[346011390,1734623441515,-1465.39,0.00024109,4]
[346011391,1734623441525,-676.41,0.00024109,4]
[346011392,1734623441534,-490.78512808,0.00024109,4]
[346011393,1734623441545,-500.0,0.00024109,4]
[346011394,1734623441557,-506.74,0.00024109,4]
[346011395,1734623441566,-1117.63,0.00024109,4]
[346011396,1734623441575,-1309.44,0.00024109,4]
[346011397,1734623441584,-1745.38,0.00024109,4]
[346011398,1734623441596,-500.0,0.00024109,4]
[346011399,1734623441605,-500.0,0.00024109,4]
[346011400,1734623441614,-500.0,0.00024109,4]
[346011401,1734623441624,-500.0,0.00024109,4]
[346011402,1734623441634,-500.0,0.00024109,4]
[346011403,1734623441645,-391.27731319,0.0002417,2]
[346011405,1734623441655,-1000.0,0.000242,8]
[346011406,1734623441664,-150.0,0.00024219,2]
[346011407,1734623441674,-150.0,0.00024219,2]
[346011409,1734623441684,-150.0,0.00024222,2]
[346011411,1734623441694,-150.0,0.00024225,2]
[346011413,1734623441704,-150.0,0.00024225,2]
[346011415,1734623441713,-150.0,0.00024227,2]
[346011417,1734623441723,-150.0,0.00024238,2]
[346011419,1734623441732,-150.0,0.0002425,2]
[346011421,1734623441742,-150.0,0.0002425,2]
[346011423,1734623441751,-150.0,0.00024253,2]
[346011424,1734623441760,-150.0,0.0002426,2]
[346011425,1734623441770,-150.0,0.0002426,2]
[346011427,1734623441779,-150.0,0.00024263,2]
[346011429,1734623441788,-150.0,0.00024264,2]
[346011431,1734623441797,-150.0,0.00024266,2]
[346011437,1734623441847,-150.0,0.00024267,2]
[346011439,1734623441857,-150.0,0.00024269,2]
[346011441,1734623441866,-150.0,0.00024272,2]
[346011443,1734623441875,-150.0,0.00024274,2]
[346011445,1734623441885,-150.0,0.00024278,2]
[346011447,1734623441897,-150.0,0.00024281,2]
[346011449,1734623441908,-150.0,0.00024285,2]
[346011451,1734623441917,-150.0,0.00024293,2]
[346011452,1734623441927,-150.0,0.00024294,2]
[346011454,1734623441936,-150.0,0.00024299,2]
[346011456,1734623441945,-1200.0,0.000243,8]
[346011458,1734623441955,-150.0,0.00024307,2]
[346011460,1734623441964,-150.0,0.00024308,2]
[346011462,1734623441973,-150.0,0.00024309,2]
[346011463,1734623441983,-150.0,0.00024313,2]
[346011464,1734623441992,-150.0,0.00024314,2]
[346011465,1734623442001,-150.0,0.00024316,2]
[346011466,1734623442010,-150.0,0.00024317,2]
[346011467,1734623442019,-150.0,0.00024318,2]
[346011468,1734623442028,-150.0,0.00024319,2]
[346011469,1734623442037,-500.0,0.0002432,4]
[346011470,1734623442047,-500.0,0.0002432,4]
[346011471,1734623442055,-500.0,0.0002432,4]
[346011472,1734623442065,-500.0,0.0002432,4]
[346011473,1734623442074,-500.0,0.0002432,4]
[346011474,1734623442083,-150.0,0.00024321,2]
[346011475,1734623442092,-150.0,0.00024325,2]
[346011476,1734623442101,-150.0,0.00024327,2]
[346011477,1734623442110,-150.0,0.00024332,2]
[346011478,1734623442119,-150.0,0.00024334,2]
[346011479,1734623442129,-150.0,0.00024339,2]
[346011480,1734623442138,-150.0,0.00024346,2]
[346011481,1734623442149,-150.0,0.00024349,2]
[346011482,1734623442158,-391.27731319,0.00024353,2]
[346011483,1734623442167,-150.0,0.00024359,2]
[346011484,1734623442176,-150.0,0.0002436,2]
[346011485,1734623442185,-150.0,0.00024364,2]
[346011486,1734623442195,-150.0,0.00024368,2]
[346011487,1734623442204,-150.0,0.00024369,2]
[346011488,1734623442213,-150.0,0.00024371,2]
[346011489,1734623442222,-150.0,0.00024374,2]
[346011490,1734623442232,-170.86085771,0.0002438,4]
[346011491,1734623442241,-500.0,0.0002438,4]
[346011492,1734623442250,-500.0,0.0002438,4]
[346011493,1734623442259,-895.5,0.0002438,4]
[346011494,1734623442268,-500.0,0.0002438,4]
[346011495,1734623442277,-500.0,0.00024381,4]
[346011496,1734623442286,-500.0,0.00024381,4]
[346011497,1734623442295,-500.0,0.00024381,4]
[346011498,1734623442304,-500.0,0.00024381,4]
[346011499,1734623442313,-500.0,0.00024381,4]
[346011500,1734623442322,-500.0,0.00024381,4]
[346011501,1734623442332,-500.0,0.00024381,4]
[346011502,1734623442342,-500.0,0.00024381,4]
[346011503,1734623442351,-500.0,0.00024381,4]
[346011504,1734623442360,-500.0,0.00024381,4]
[346011505,1734623442369,-500.0,0.00024381,4]
[346011506,1734623442379,-824.3,0.00024381,4]
[346011507,1734623442388,-500.0,0.00024381,4]
[346011508,1734623442400,-500.0,0.00024381,4]
[346011509,1734623442409,-500.0,0.00024381,4]
[346011510,1734623442418,-500.0,0.00024381,4]
[346011511,1734623442427,-500.0,0.00024381,4]
[346011512,1734623442437,-500.0,0.00024381,4]
[346011513,1734623442446,-618.46,0.00024381,4]
[346011514,1734623442456,-521.38,0.00024381,4]
[346011515,1734623442466,-1093.24,0.00024381,4]
[346011516,1734623442475,-500.0,0.00024381,4]
[346011517,1734623442485,-500.0,0.00024381,4]
[346011518,1734623442494,-500.0,0.00024381,4]
[346011519,1734623442504,-500.0,0.00024381,4]
[346011520,1734623442513,-500.0,0.00024381,4]
[346011521,1734623442522,-500.0,0.00024381,4]
[346011522,1734623442531,-717.63,0.00024381,4]
[346011523,1734623442542,-500.0,0.00024381,4]
[346011524,1734623442551,-1811.14,0.00024381,4]
[346011525,1734623442564,-2017.18,0.00024381,4]
[346011526,1734623442574,-500.0,0.00024381,4]
[346011527,1734623442583,-500.0,0.00024382,4]
[346011528,1734623442593,-500.0,0.00024383,4]
[346011529,1734623442603,-500.0,0.00024383,4]
[346011530,1734623442612,-500.0,0.00024383,4]
[346011531,1734623442622,-500.0,0.00024383,4]
[346011532,1734623442631,-635.96,0.00024383,4]
[346011533,1734623442640,-500.0,0.00024383,4]
[346011534,1734623442652,-522.98,0.00024383,4]
[346011535,1734623442661,-593.22,0.00024383,4]
[346011536,1734623442670,-754.73,0.00024383,4]
[346011537,1734623442681,-500.0,0.00024383,4]
[346011538,1734623442691,-500.0,0.00024383,4]
[346011539,1734623442700,-783.85,0.00024383,4]
[346011540,1734623442710,-843.2,0.00024383,4]
[346011541,1734623442720,-998.34,0.00024383,4]
[346011542,1734623442730,-500.0,0.00024383,4]
[346011543,1734623442739,-1465.39,0.00024383,4]
[346011544,1734623442749,-676.41,0.00024383,4]
[346011545,1734623442758,-500.0,0.00024383,4]
[346011546,1734623442768,-506.74,0.00024383,4]
[346011547,1734623442777,-1117.63,0.00024383,4]
[346011548,1734623442787,-1309.44,0.00024383,4]
[346011549,1734623442796,-1745.38,0.00024383,4]
[346011550,1734623442805,-500.0,0.00024383,4]
[346011551,1734623442814,-500.0,0.00024383,4]
[346011552,1734623442823,-500.0,0.00024383,4]
[346011553,1734623442832,-500.0,0.00024383,4]
[346011554,1734623442842,-500.0,0.00024383,4]
[346011555,1734623442851,-150.0,0.00024391,2]
[346011556,1734623442861,-150.0,0.00024393,2]
[346011557,1734623442871,-150.0,0.00024399,2]
[346011558,1734623442880,-150.0,0.000244,2]
[346011559,1734623442889,-200.0,0.000244,8]
[346011560,1734623442901,-150.0,0.00024403,2]
[346011561,1734623442910,-150.0,0.00024405,2]
[346011562,1734623442919,-150.0,0.00024406,2]
[346011563,1734623442928,-746.95,0.00024409,4]
[346011564,1734623442938,-150.0,0.00024416,2]
[346011565,1734623442947,-150.0,0.00024416,2]
[346011566,1734623442957,-150.0,0.0002442,2]
[346011567,1734623442966,-150.0,0.00024421,2]
[346011568,1734623442975,-150.0,0.00024422,2]
[346011569,1734623442988,-150.0,0.00024423,2]
[346011570,1734623442997,-150.0,0.00024431,2]
[346011571,1734623443006,-150.0,0.00024434,2]
[346011572,1734623443016,-150.0,0.00024435,2]
[346011573,1734623443025,-150.0,0.00024438,2]
[346011574,1734623443034,-150.0,0.00024451,2]
[346011575,1734623443044,-150.0,0.00024453,2]
[346011576,1734623443053,-150.0,0.00024458,2]
[346011577,1734623443062,-150.0,0.00024458,2]
[346011578,1734623443072,-289.66422182,0.00024466,2]
[346011579,1734623443082,-150.0,0.00024468,2]
[346011580,1734623443092,-150.0,0.0002447,2]
[346011581,1734623443101,-150.0,0.00024472,2]
[346011583,1734623443111,-150.0,0.00024476,2]
[346011584,1734623443121,-746.95,0.00024499,4]
[346011586,1734623443133,-900.0,0.00024499,9]
[346011587,1734623443142,-900.0,0.00024499,9]
[346011588,1734623443154,-900.0,0.00024499,9]
[346011589,1734623443164,-900.0,0.00024499,9]
[346011590,1734623443173,-900.0,0.00024499,9]
[346011591,1734623443183,-900.0,0.00024499,9]
[346011593,1734623443192,-261.0174725,0.000245,2]
[346011595,1734623443202,-200.0,0.000245,8]
[346011597,1734623443212,-391.27731319,0.00024535,2]
[346011599,1734623443221,-406.01531737,0.0002454,2]
[346011600,1734623443231,-694.61,0.00024544,2]
[346011602,1734623443241,-497.22,0.00024559,2]
[346011605,1734623443250,-500.0,0.00024594,4]
[346011608,1734623443259,-500.0,0.00024594,4]
[346011611,1734623443268,-588.26228958,0.00024594,4]
[346011613,1734623443277,-500.0,0.00024594,4]
[346011616,1734623443287,-200.0,0.000246,8]
[346011620,1734623443296,-500.0,0.00024654,4]
[346011623,1734623443305,-500.0,0.00024654,4]
[346011627,1734623443315,-895.5,0.00024654,4]
[346011630,1734623443324,-500.0,0.00024654,4]
[346011632,1734623443333,-500.0,0.00024655,4]
[346011635,1734623443343,-500.0,0.00024655,4]
[346011637,1734623443353,-500.0,0.00024655,4]
[346011640,1734623443362,-500.0,0.00024655,4]
[346011642,1734623443371,-500.0,0.00024655,4]
[346011644,1734623443381,-500.0,0.00024655,4]
[346011645,1734623443391,-500.0,0.00024655,4]
[346011646,1734623443402,-500.0,0.00024655,4]
[346011647,1734623443413,-500.0,0.00024655,4]
[346011648,1734623443423,-500.0,0.00024655,4]
[346011649,1734623443432,-500.0,0.00024655,4]
[346011650,1734623443442,-824.3,0.00024655,4]
[346011651,1734623443451,-500.0,0.00024655,4]
[346011652,1734623443461,-500.0,0.00024655,4]
[346011653,1734623443471,-500.0,0.00024655,4]
[346011654,1734623443481,-500.0,0.00024655,4]
[346011655,1734623443491,-500.0,0.00024655,4]
[346011656,1734623443501,-618.46,0.00024655,4]
[346011657,1734623443511,-521.38,0.00024655,4]
[346011658,1734623443521,-1093.24,0.00024655,4]
[346011659,1734623443530,-500.0,0.00024655,4]
[346011660,1734623443540,-500.0,0.00024655,4]
[346011661,1734623443552,-500.0,0.00024655,4]
[346011662,1734623443562,-500.0,0.00024655,4]
[346011663,1734623443572,-500.0,0.00024655,4]
[346011664,1734623443581,-500.0,0.00024655,4]
[346011665,1734623443591,-717.63,0.00024655,4]
[346011666,1734623443602,-1811.14,0.00024655,4]
[346011667,1734623443611,-2017.18,0.00024655,4]
[346011668,1734623443620,-594.24913679,0.00024655,4]
[346011669,1734623443631,-746.95,0.00024656,4]
[346011670,1734623443641,-500.0,0.00024657,4]
[346011671,1734623443653,-500.0,0.00024657,4]
[346011672,1734623443663,-500.0,0.00024657,4]
[346011673,1734623443673,-564.12,0.00024657,4]
[346011674,1734623443683,-635.96,0.00024657,4]
[346011675,1734623443693,-522.98,0.00024657,4]
[346011676,1734623443702,-593.22,0.00024657,4]
[346011677,1734623443712,-754.73,0.00024657,4]
[346011678,1734623443722,-638.11227435,0.00024657,4]
[346011679,1734623443732,-17598.42282633,0.00024657,3]
[346011680,1734623443742,-500.0,0.00024657,4]
[346011681,1734623443751,-783.85,0.00024657,4]
[346011682,1734623443761,-843.2,0.00024657,4]
[346011683,1734623443771,-998.34,0.00024657,4]
[346011684,1734623443780,-500.0,0.00024657,4]
[346011685,1734623443790,-1465.39,0.00024657,4]
[346011686,1734623443799,-676.41,0.00024657,4]
[346011687,1734623443808,-500.0,0.00024657,4]
[346011688,1734623443818,-506.74,0.00024657,4]
[346011689,1734623443827,-1117.63,0.00024657,4]
[346011690,1734623443836,-1309.44,0.00024657,4]
[346011691,1734623443846,-1745.38,0.00024657,4]
[346011692,1734623443855,-272.17087896,0.00024657,4]
[346011693,1734623443865,-372.5253043,0.00024657,4]
[346011694,1734623443875,-500.0,0.00024657,4]
[346011695,1734623443885,-500.0,0.00024657,4]
[346011696,1734623443895,-500.0,0.00024657,4]
[346011697,1734623443908,-694.77271872,0.00024657,4]
[346011698,1734623443918,-209.1208449,0.00024659,2]
[346011699,1734623443928,-200.0,0.000247,9]
[346011700,1734623443938,-391.27731319,0.00024718,2]
[346011701,1734623443948,-192.75,0.00024753,2]
[346011703,1734623443958,-746.95,0.00024766,4]
[346011705,1734623443967,-2999.95,0.00024779,2]
[346011706,1734623443977,-746.95,0.00024779,4]
[346011707,1734623443987,-746.95,0.00024783,4]
[346011708,1734623443996,-746.95,0.00024783,4]
[346011709,1734623444006,-746.95,0.00024783,4]
[346011710,1734623444015,-1127.0,0.00024784,2]
[346011711,1734623444025,-406.01531737,0.00024795,2]
[346011712,1734623444036,-746.95,0.00024799,4]
[346011713,1734623444045,-746.95,0.00024799,4]
[346011714,1734623444055,-746.95,0.00024799,4]
[346011715,1734623444065,-746.95,0.00024799,4]
[346011716,1734623444074,-746.95,0.00024799,4]
[346011717,1734623444083,-204.20070945,0.00024799,4]
[346011718,1734623444259,-542.74929055,0.00024799,4]
[346011719,1734623444269,-338.33746479,0.00024799,4]
[346011720,1734623444281,-408.61253521,0.00024799,4]
[346011721,1734623444291,-75.36430432,0.00024799,4]
[346011722,1734623444308,-500.0,0.00024594,4]
[346011723,1734623444318,-247.049,0.00024799,4]
[346011724,1734623444331,-424.53669568,0.00024799,4]
[346011725,1734623444341,-746.95,0.00024799,4]
[346011726,1734623444351,-747.08,0.00024799,4]
[346011727,1734623444360,-13502.87236267,0.000248,2]
[346011728,1734623444384,-500.0,0.00023559,4]
[346011729,1734623444394,-80.71788557,0.000248,2]
[346011730,1734623444408,-1784.09420779,0.000248,2]
[346011731,1734623444420,-5023.17418197,0.000248,2]
[346011732,1734623444430,-20390.858638,0.000248,2]
[346011733,1734623444440,-20390.858638,0.000248,2]
[346011734,1734623444449,-20390.858638,0.000248,2]
[346011735,1734623444458,-20390.858638,0.000248,2]
[346011736,1734623444468,-2120.69417646,0.000248,2]
[346011737,1734623444477,-700.0,0.000248,9]
[346011738,1734623444487,-150.0,0.00024807,2]
[346011739,1734623444496,-500.0,0.00024868,4]
[346011740,1734623444506,-270.3951504,0.00024868,4]
[346011741,1734623444515,-500.0,0.00024868,4]
[346011742,1734623444525,-999.0,0.00024869,4]
[346011743,1734623444535,-847.7317,0.000249,2]
[346011744,1734623444545,-426.8318,0.000249,2]
[346011745,1734623444557,-17095.8954,0.000249,2]
[346011746,1734623444566,-162.71571543,0.000249,2]
[346011747,1734623444576,-172.13566146,0.000249,2]
[346011748,1734623444586,-162.71571543,0.000249,2]
[346011749,1734623444597,-182.49092784,0.000249,2]
[346011750,1734623444607,-498.20721075,0.000249,2]
[346011751,1734623444616,-9132.12091556,0.000249,2]
[346011752,1734623444630,-532.2703543,0.000249,2]
[346011753,1734623444640,-2047.63676239,0.000249,2]
[346011754,1734623444652,-150.0,0.00024921,2]
[346011755,1734623444662,-500.0,0.00024928,4]
[346011756,1734623444671,-500.0,0.00024928,4]
[346011757,1734623444682,-895.5,0.00024928,4]
[346011758,1734623444691,-500.0,0.00024928,4]
[346011759,1734623444701,-576.30121537,0.00024929,4]
[346011760,1734623444711,-529.99565692,0.00024929,4]
[346011761,1734623444720,-500.0,0.00024929,4]
[346011762,1734623444730,-500.0,0.00024929,4]
[346011763,1734623444740,-500.0,0.00024929,4]
[346011764,1734623444749,-500.0,0.00024929,4]
[346011765,1734623444760,-500.0,0.00024929,4]
[346011766,1734623444771,-500.0,0.00024929,4]
[346011767,1734623444781,-500.0,0.00024929,4]
[346011768,1734623444790,-500.0,0.00024929,4]
[346011769,1734623444800,-500.0,0.00024929,4]
[346011770,1734623444809,-824.3,0.00024929,4]
[346011771,1734623444819,-500.0,0.00024929,4]
[346011772,1734623444828,-500.0,0.00024929,4]
[346011773,1734623444837,-500.0,0.00024929,4]
[346011774,1734623444846,-500.0,0.00024929,4]
[346011775,1734623444855,-500.0,0.00024929,4]
[346011776,1734623444865,-618.46,0.00024929,4]
[346011777,1734623444875,-521.38,0.00024929,4]
[346011778,1734623444885,-1093.24,0.00024929,4]
[346011779,1734623444894,-417.37,0.00024929,4]
[346011780,1734623444906,-500.0,0.00024929,4]
[346011781,1734623444915,-500.0,0.00024929,4]
[346011782,1734623444925,-500.0,0.00024929,4]
[346011783,1734623444935,-500.0,0.00024929,4]
[346011784,1734623444944,-500.0,0.00024929,4]
[346011785,1734623444954,-717.63,0.00024929,4]